[Event "1st Henriquez Urena Memorial 2022"]
[Site "Santo Domingo"]
[Date "2022.09.21"]
[Round "7.4"]
[White "Cuenca Jimenez, Jose Fernando"]
[Black "Mendez Ramirez, Victor"]
[Result "1/2-1/2"]
[ECO "D11"]
[WhiteElo "2553"]
[BlackElo "2153"]
[Annotator "TA"]
[PlyCount "243"]
[EventDate "2022.09.16"]
[EventType "swiss"]
[EventCountry "DOM"]
[SourceTitle "playchess.com"]
[Source "ChessBase"]
[SourceQuality "1"]
[TimeControl "5400+30"]

{[%evp 9,243,6,24,14,18,8,17,9,16,17,34,24,35,18,23,21,35,-16,-9,-8,-8,-8,-8,-14,-6,-7,-10,-4,0,-7,11,0,20,20,20,24,14,0,0,4,0,0,15,18,29,9,24,14,40,1,29,8,55,40,62,71,98,91,96,98,98,69,96,79,86,54,63,56,54,29,22,22,26,5,9,16,12,14,11,0,0,8,12,0,8,8,6,8,17,0,0,0,0,0,0,0,0,-4,0,0,0,0,0,-8,-8,-8,0,-22,-22,-35,-35,-49,-49,-49,-42,-42,-42,-42,-17,-16,0,-42,-42,-57,-42,-47,-5,-2,0,0,0,0,0,0,8,0,36,37,40,8,8,8,8,7,7,7,8,8,8,8,8,8,8,8,8,8,8,8,8,8,8,8,8,8,34,39,39,34,52,52,52,52,64,64,64,64,64,64,64,64,64,0,64,0,64,52,52,52,52,52,57,32,48,32,34,34,27,8,8,0,8,8,8,0,0,0,0,0,0,0,0,0,8,8,23,0,0,0,0,0,0,0,0,0,0,0,0,0,0,0,0,0,0,0,0,0]} 1. d4 {[%emt 0:01:49]} d5 {[%emt 0:00:21]} 2. c4 {[%emt 0:00:08]} c6 {[%emt 0:00:07]} 3. Nf3 {[%emt 0:00:04]} Nf6 {[%emt 0:00:31]} 4. e3 {[%emt 0:00:17]} a6 {[%emt 0:02:01]} 5. b3 {[%emt 0:03:02]} Bg4 {[%emt 0:01:59]} 6. Be2 {[%emt 0:02:43] D11: Slav Defence: 3 Nf3 sidelines and 3...Nf6 4 e3 Bg4.} e6 {[%emt 0:00:36]} 7. O-O {[%emt 0:00:21]} Nbd7 {[%emt 0:00:50]} 8. Bb2 {[%emt 0:00:23]} Bd6 {[%emt 0:01:07]} 9. Nbd2 {[%emt 0:00:10]} Qb8 {[%emt 0:03:33]} 10. h3 {[%emt 0:01:13]} Bh5 {[%emt 0:00:09]} 11. Nh4 {[%emt 0:02:02]} Bxe2 {[%emt 0:09:46]} 12. Qxe2 {[%emt 0:00:26]} O-O {[%emt 0:00:37] [#]} 13. c5 $146 {[%emt 0:04:50]} (13. e4 $14 Nxe4 14. Nxe4 dxe4 15. Qxe4) ({Predecessor:} 13. Nhf3 Re8 14. Rad1 e5 15. dxe5 Nxe5 16. cxd5 cxd5 17. Nd4 Qc8 18. N2f3 Ng6 19. Qc2 {1-0 (47) Solomon,K (2337)-Olsen,H (2376) Dresden 2008}) 13... Be7 {[%emt 0:03:24]} 14. Nhf3 {[%emt 0:01:58]} b6 {[%emt 0:06:22]} 15. cxb6 {[%emt 0:03:58]} Qxb6 {[%emt 0:00:35]} 16. e4 {[%emt 0:04:11]} dxe4 {[%emt 0:05:08]} 17. Nxe4 {[%emt 0:00:09]} Nxe4 {[%emt 0:00:22]} 18. Qxe4 {[%emt 0:00:02]} Nf6 {[%emt 0:00:21]} 19. Qc2 {[%emt 0:04:35]} Rac8 {[%emt 0:00:50]} 20. Rac1 {[%emt 0:01:05]} Rfd8 {[%emt 0:01:11]} 21. Qe2 {[%emt 0:03:41]} Qb5 {[%emt 0:04:31]} 22. Rc4 {[%emt 0:03:45]} Nd5 {[%emt 0:07:38]} 23. Qe4 {[%emt 0:01:39]} Nb6 {[%emt 0:01:35]} 24. Rc2 {[%emt 0:03:34]} Qd5 {[%emt 0:04:37]} 25. Qg4 {[%emt 0:03:15][%cal Oc2c5]} Nd7 {[%emt 0:00:29] Inhibits Rc5.} (25... h5 $5 {[%cal Rh5g4]} 26. Qf4 Bd6 $11) 26. Rfc1 {[%emt 0:01:22]} Bd6 {[%emt 0:06:44]} 27. h4 {[%emt 0:07:18]} h6 {[%emt 0:01:14]} 28. Nd2 {[%emt 0:04:36]} a5 {[%emt 0:16:09]} (28... Nf6 $5 {[%cal Rf6g4]} 29. Qf3 Qb5 $11) 29. g3 {[%emt 0:07:47]} Be7 {[%emt 0:01:49][%cal Oa5a4]} 30. Qf3 {[%emt 0:02:16]} Nb8 {[%emt 0:02:14]} (30... Rb8 $11) 31. Rc4 {[%emt 0:02:51]} (31. Kg2 $5) 31... Bb4 {[%emt 0:03:22]} 32. Bc3 {[%emt 0:01:53]} Qxf3 {[%emt 0:03:24]} 33. Nxf3 {[%emt 0:00:05]} Bxc3 {[%emt 0:00:17]} 34. R1xc3 {[%emt 0:00:33]} Rd5 {[%emt 0:00:08]} 35. Kf1 {[%emt 0:04:55]} Rcd8 {[%emt 0:00:17]} 36. Ke2 {[%emt 0:00:39]} f6 {[%emt 0:00:17]} 37. Rc5 {[%emt 0:00:41]} Kf7 {[%emt 0:00:45]} 38. Rxd5 {[%emt 0:00:39]} Rxd5 $14 {[%emt 0:00:29][%mdl 4096] Endgame KRN-KRN} 39. Ke3 {[%emt 0:00:12]} Ke7 {[%emt 0:00:23]} 40. Rc4 {[%emt 0:03:27]} Kd7 {[%emt 0:00:51]} 41. Ne1 {[%emt 0:01:15]} Na6 {[%emt 0:02:38]} 42. Nd3 {[%emt 0:00:54]} g5 {[%emt 0:00:51] Prevents Nf4.} 43. hxg5 {[%emt 0:03:31]} hxg5 {[%emt 0:00:02]} 44. Rc1 {[%emt 0:00:13]} Kd6 {[%emt 0:00:33]} 45. Nb2 {[%emt 0:02:03]} Rb5 {[%emt 0:05:31]} 46. Rh1 {[%emt 0:04:13]} c5 {[%emt 0:03:31]} 47. Nc4+ {[%emt 0:01:46]} Kc6 {[%emt 0:00:41]} 48. dxc5 {[%emt 0:02:08]} Kxc5 {[%emt 0:00:22]} 49. Rh7 {[%emt 0:03:36]} a4 {[%emt 0:02:23]} 50. bxa4 {[%emt 0:02:10]} Rb4 {[%emt 0:00:02]} 51. Nd2 {[%emt 0:00:04]} f5 {[%emt 0:01:42] Inhibits Ne4+.} 52. a5 {[%emt 0:02:04]} Ra4 {[%emt 0:00:35][%csl LRa2,LRa5]} 53. Re7 {[%emt 0:03:08]} Kd6 {[%emt 0:00:23]} 54. Rb7 {[%emt 0:00:09]} Nc5 {[%emt 0:00:28]} 55. Rb2 {[%emt 0:01:04]} Kd5 {[%emt 0:00:27]} 56. Rc2 {[%emt 0:00:31]} Ra3+ {[%emt 0:00:33]} 57. Ke2 $1 {[%emt 0:00:03]} Ra4 {[%emt 0:00:21] Prevents Nc4.} 58. Nf3 {[%emt 0:00:42]} Ne4 {[%emt 0:00:27]} 59. Kf1 {[%emt 0:01:10]} Rxa5 {[%emt 0:00:41]} 60. Ne1 {[%emt 0:00:09]} g4 {[%emt 0:00:26]} 61. Nd3 {[%emt 0:00:32]} Kd4 {[%emt 0:00:22]} 62. Nc1 {[%emt 0:00:31]} Ra6 {[%emt 0:00:42]} 63. Ke2 {[%emt 0:00:48]} Nc3+ {[%emt 0:00:17]} 64. Kd2 {[%emt 0:00:01] [#] And now Nb3+ would win.} Ne4+ {[%emt 0:00:02]} 65. Ke1 {[%emt 0:00:06]} Ra8 {[%emt 0:00:56]} 66. Rc7 {[%emt 0:01:09]} Rh8 {[%emt 0:00:46]} 67. Rd7+ {[%emt 0:00:11]} Kc3 {[%emt 0:00:33] [#] White must now prevent ...Rh1+.} (67... Kc4 $5 {[%cal Rh8h1]} 68. Nd3 Ra8 69. Nb2+ Kc3 70. Nd1+ Kb4 71. Rb7+ Kc5 $17) 68. Rc7+ {[%emt 0:00:53]} Kb2 {[%emt 0:01:12] aiming for ...Rh1+.} 69. Ke2 {[%emt 0:00:36]} Rh2 {[%emt 0:00:00]} 70. Nd3+ {[%emt 0:00:30]} Kxa2 {[%emt 0:00:00]} 71. Ke3 {[%emt 0:00:03]} Rg2 {[%emt 0:00:34]} 72. Rc6 {[%emt 0:01:01]} Nxg3 {[%emt 0:00:35]} 73. fxg3 {[%emt 0:00:32]} Rxg3+ $11 {[%emt 0:00:15] KRN-KR} 74. Ke2 {[%emt 0:00:35]} Rg2+ {[%emt 0:00:42]} 75. Kf1 {[%emt 0:00:01]} Rd2 {[%emt 0:00:41]} 76. Ne5 {[%emt 0:00:27]} g3 {[%emt 0:00:37]} 77. Rxe6 {[%emt 0:00:13]} Rf2+ {[%emt 0:00:26]} 78. Kg1 {[%emt 0:00:13]} f4 {[%emt 0:00:38]} 79. Rf6 {[%emt 0:00:12]} Kb3 {[%emt 0:00:30]} 80. Nd3 {[%emt 0:00:06][%csl LRf2,LRf4]} Rd2 {[%emt 0:00:18]} 81. Nxf4 {[%emt 0:00:15]} Kc4 {[%emt 0:00:12]} 82. Rg6 {[%emt 0:00:23]} (82. Ra6 {keeps more tension.} g2 83. Ra8 Kb3 84. Re8) 82... g2 {[%emt 0:00:29]} 83. Nxg2 {[%emt 0:00:01]} (83. Rc6+ {seems wilder.} Kd4 84. Re6 Rd1+ 85. Kxg2 Ra1 86. Re8) 83... Kc5 {[%emt 0:00:35]} 84. Kh2 {[%emt 0:00:09]} Kb5 {[%emt 0:00:23]} 85. Kg3 {[%emt 0:00:03]} Kb4 {[%emt 0:00:45]} 86. Kf3 {[%emt 0:00:05]} Kb5 {[%emt 0:00:26]} 87. Ke3 {[%emt 0:00:04]} Rd1 {[%emt 0:00:32]} 88. Nf4 {[%emt 0:00:03]} Kc4 {[%emt 0:00:32]} 89. Rc6+ {[%emt 0:00:03]} Kb5 {[%emt 0:00:29]} 90. Rc8 {[%emt 0:00:01]} Re1+ {[%emt 0:00:31]} 91. Kd4 {[%emt 0:00:04]} Rd1+ {[%emt 0:00:27]} 92. Nd3 {[%emt 0:00:01]} Kb6 {[%emt 0:00:29]} 93. Rc3 {[%emt 0:00:07]} Rh1 {[%emt 0:00:26]} 94. Kd5 {[%emt 0:08:04]} Rd1 {[%emt 0:00:23]} 95. Kd4 {[%emt 0:00:00]} ({White should play} 95. Rb3+ $14 Kc7 96. Ke4) 95... Rd2 {[%emt 0:00:20]} ({Black should try} 95... Rh1 $1 $11) 96. Kd5 {[%emt 0:00:00]} Rd1 $1 {[%emt 0:00:30]} 97. Kd6 {[%emt 0:00:00] White threatens Rb3+ and mate.} Kb5 {[%emt 0:00:33]} 98. Ke5 {[%emt 0:00:00]} Rh1 {[%emt 0:00:26]} 99. Nf4 {[%emt 0:00:00]} Kb4 {[%emt 0:00:51]} 100. Rc7 {[%emt 0:00:00]} Re1+ {[%emt 0:00:23]} 101. Kd6 {[%emt 0:00:00] White wants to mate with Nd3+.} Rd1+ {[%emt 0:00:35]} 102. Nd5+ {[%emt 0:00:00]} Kb3 {[%emt 0:00:25]} 103. Rc3+ {[%emt 0:00:00]} Kb2 {[%emt 0:00:33]} 104. Rg3 {[%emt 0:00:00]} Rd2 {[%emt 0:00:48]} 105. Kc5 {[%emt 0:00:00]} Rh2 {[%emt 0:00:23]} 106. Nb6 {[%emt 0:00:00]} Kc2 {[%emt 0:00:24]} 107. Nc4 {[%emt 0:00:00]} Rh8 {[%emt 0:00:42]} 108. Nd6 {[%emt 0:00:00]} Rh1 {[%emt 0:00:23]} 109. Ne4 {[%emt 0:00:00]} Rh2 {[%emt 0:00:31]} 110. Kc4 {[%emt 0:00:00]} Rh4 {[%emt 0:00:41]} 111. Rg2+ {[%emt 0:00:00]} Kc1 {[%emt 0:00:26]} 112. Kd4 {[%emt 0:00:00]} (112. Kc3 $5 {[%cal Rg2g1]} Rh3+ 113. Ng3 $14) 112... Rh8 {[%emt 0:00:27] The position is equal.} 113. Nc5 {[%emt 0:00:00]} Kd1 {[%emt 0:00:37]} 114. Ra2 {[%emt 0:00:00]} Ke1 {[%emt 0:00:24]} 115. Ne4 {[%emt 0:00:00]} Kf1 {[%emt 0:00:41]} 116. Ke3 {[%emt 0:00:00]} Re8 {[%emt 0:00:27]} 117. Rh2 {[%emt 0:00:00]} Kg1 {[%emt 0:00:27]} 118. Rh4 {[%emt 0:00:00]} Kg2 {[%emt 0:00:28]} 119. Rg4+ {[%emt 0:00:00]} Kf1 {[%emt 0:00:30]} 120. Rg7 {[%emt 0:00:00]} Re6 {[%emt 0:00:35]} 121. Kf3 {[%emt 0:00:15]} Re8 {[%emt 0:00:33]} 122. Rg6 {[%emt 0:00:47] Weighted Error Value: White=0.10 (very precise) /Black=0.08 (flawless)} 1/2-1/2

[Event "1st Henriquez Urena Memorial 2022"]
[Site "Santo Domingo"]
[Date "2022.09.21"]
[Round "7.5"]
[White "Guzman, Christopher"]
[Black "Crispin Ferreras, Darvi Abraham"]
[Result "1/2-1/2"]
[ECO "E15"]
[WhiteElo "2252"]
[BlackElo "2160"]
[Annotator "TA"]
[PlyCount "40"]
[EventDate "2022.09.16"]
[EventType "swiss"]
[EventCountry "DOM"]
[SourceTitle "playchess.com"]
[Source "ChessBase"]
[SourceQuality "1"]
[TimeControl "5400+30"]

{[%evp 14,40,18,24,22,-54,-54,-66,-56,-78,-64,-79,-33,-64,-41,-37,16,-30,-30,-38,-44,-51,-25,-50,-31,-59,-43,-37,-45]} 1. d4 {[%emt 0:00:04]} Nf6 {[%emt 0:01:12]} 2. c4 {[%emt 0:00:27]} e6 {[%emt 0:01:04]} 3. Nf3 {[%emt 0:00:17]} b6 {[%emt 0:00:31]} 4. g3 {[%emt 0:03:00]} Ba6 {[%emt 0:01:01]} 5. Qa4 {[%emt 0:00:24]} Bb7 {[%emt 0:00:10]} 6. Bg2 {[%emt 0:00:08]} Be7 {[%emt 0:00:28]} 7. Nc3 {[%emt 0:00:17]} O-O {[%emt 0:01:12]} 8. O-O {[%emt 0:00:07]} c5 {[%emt 0:03:09] is the legacy move (8...Ne4). E15: Queen's Indian: 4 g3 sidelines, 4 g3 Ba6 and 4 g3 Bb7 early deviations.} 9. d5 {[%emt 0:01:53]} (9. Bf4 $11) 9... exd5 $15 {[%emt 0:00:34]} 10. Nh4 {[%emt 0:00:07][%cal Rc4d5]} Bc6 {[%emt 0:00:14]} 11. Qc2 {[%emt 0:01:32][%cal Rc4d5]} dxc4 {[%emt 0:09:33] [#] Hoping for ...d5.} 12. e4 {[%emt 0:00:01]} Na6 {[%emt 0:00:38] [#]} (12... g6 $17) 13. a3 $146 {[%emt 0:00:02]} ({Predecessor:} 13. Nf5 Ne8 14. Nd5 Bxd5 15. exd5 Nd6 16. Nxd6 Bxd6 17. Qxc4 Nc7 18. Bd2 Qf6 19. Bc3 Qg6 20. Rae1 Rae8 21. Rxe8 Rxe8 22. Qa4 {½-½ (22) Colls Gelaberto,E (2126)-Saez Coma,A (1973) Barcelona 2015}) 13... Nc7 {[%emt 0:00:13]} 14. Nf5 {[%emt 0:00:08]} Ne6 {[%emt 0:00:29]} ({Better is} 14... g6 $15 15. Nh6+ Kh8) 15. Rd1 {[%emt 0:00:21]} (15. Nd5 $142 Bxd5 16. exd5) 15... Nd4 $1 $11 {[%emt 0:02:28]} 16. Nxd4 {[%emt 0:00:14]} cxd4 {[%emt 0:00:02]} 17. Rxd4 {[%emt 0:00:20]} Bc5 {[%emt 0:00:28]} 18. Rxc4 {[%emt 0:01:42] [#] e5 is the strong threat.} Ng4 {[%emt 0:00:39] Black is slightly better.} 19. Nd1 {[%emt 0:03:39]} Ne5 {[%emt 0:12:04]} 20. Rxc5 {[%emt 0:00:43]} bxc5 {[%emt 1:04:21] Weighted Error Value: White=0.18 (very precise) /Black=0.20 (precise)} 1/2-1/2

[Event "1st Henriquez Urena Memorial 2022"]
[Site "Santo Domingo"]
[Date "2022.09.21"]
[Round "7.6"]
[White "Ferreira Fernandez, Sergio"]
[Black "Polanco Nunez, Yoel Starling"]
[Result "1-0"]
[ECO "E11"]
[WhiteElo "2119"]
[BlackElo "2199"]
[Annotator "TA"]
[PlyCount "93"]
[EventDate "2022.09.16"]
[EventType "swiss"]
[EventCountry "DOM"]
[SourceTitle "playchess.com"]
[Source "ChessBase"]
[SourceQuality "1"]
[TimeControl "5400+30"]

{[%evp 16,93,16,9,15,0,1,2,4,-15,-15,-22,-14,-11,0,0,0,0,0,0,0,0,0,-71,-60,-65,0,0,0,0,0,0,0,0,0,-21,-22,-30,-33,-34,0,0,-18,-22,0,0,26,28,154,133,129,0,53,12,20,20,126,110,117,110,158,111,112,0,280,0,371,365,352,335,368,350,535,512,665,665,29996,29997,29997,29998]} 1. d4 {[%emt 1:31:00]} Nf6 2. c4 {[%emt 0:00:00]} e6 {[%emt 0:00:32]} 3. Nf3 {[%emt 0:00:00]} d5 {[%emt 0:00:00]} 4. g3 {[%emt 0:00:00]} Bb4+ {[%emt 1:31:58]} 5. Bd2 {[%emt 0:00:00]} Be7 {[%emt 0:00:00]} 6. Bg2 {[%emt 0:00:00]} O-O {[%emt 0:00:00]} 7. O-O {[%emt 0:00:00]} c6 {[%emt 0:00:00]} 8. Qc2 {[%emt 0:00:00]} Nbd7 {[%emt 0:00:00]} 9. Bf4 {[%emt 0:00:00]} b6 {[%emt 0:00:00] E11: Bogo-Indian.} 10. Nbd2 {[%emt 0:00:00]} Nh5 {[%emt 0:00:00]} 11. cxd5 {[%emt 0:00:00] 11.e3 is becoming the main line.} Nxf4 {[%emt 0:00:00] The position is equal.} 12. gxf4 {[%emt 0:00:00]} cxd5 {[%emt 0:00:00]} 13. Rfc1 {[%emt 0:00:00]} Ba6 {[%emt 0:00:00]} 14. e3 {[%emt 0:00:00] [#]} g6 $146 {[%emt 0:00:00]} ({Predecessor:} 14... Bd6 15. Ne5 Rc8 16. Qa4 Nb8 17. Bf1 Bxf1 18. Kxf1 Qe7 19. Ndf3 h6 20. Rc2 Qb7 {1-0 (40) Aronian,L (2783)-Pelletier,Y (2589) Mainz 2010}) 15. Qa4 {[%emt 0:00:00]} Bb7 {[%emt 0:00:00]} 16. Rc3 {[%emt 0:00:00]} a6 {[%emt 0:00:00]} 17. Rac1 {[%emt 0:00:00]} b5 {[%emt 0:00:00][%cal Bb6b5,Bb5b4][%mdl 32]} 18. Qc2 {[%emt 0:00:00]} Bd6 {[%emt 0:00:00]} 19. Ne5 {[%emt 0:00:00]} (19. Qd1 $11) 19... b4 $17 {[%emt 0:00:00]} 20. Rd3 {[%emt 0:00:00]} Bxe5 {[%emt 0:00:00]} (20... Rc8 $15 21. Qb1 Nb6) 21. fxe5 $11 {[%emt 0:00:00]} Rc8 {[%emt 0:00:00]} 22. Qb1 {[%emt 0:00:00]} Rxc1+ {[%emt 0:00:00]} 23. Qxc1 {[%emt 0:00:00]} Qb6 {[%emt 0:00:00]} 24. Nb3 {[%emt 0:00:00]} Rc8 {[%emt 0:00:00]} 25. Qb1 {[%emt 0:00:00]} a5 {[%emt 0:00:00][%cal Ba6a5,Ba5a4][%mdl 32]} 26. Rd2 {[%emt 0:00:00]} a4 {[%emt 0:00:00]} 27. Na1 {[%emt 0:00:00]} f6 {[%emt 0:00:00]} 28. exf6 {[%emt 0:00:00]} Nxf6 {[%emt 0:00:00]} 29. Rc2 {[%emt 0:00:00]} Rxc2 {[%emt 0:00:00]} 30. Qxc2 {[%emt 0:00:00]} Bc6 {[%emt 0:00:00]} 31. b3 {[%emt 0:00:00]} Ne4 (31... Qa6 $11) 32. Bxe4 $16 {[%emt 0:00:00]} (32. bxa4 Nc3 $15) 32... dxe4 {[%emt 0:00:00][%mdl 4096] Endgame KQB-KQN} 33. Qc5 {[%emt 0:00:00]} (33. bxa4 $16 {Nb3 is the strong threat.} Kf7 34. h3 (34. Nb3 Bxa4 35. Qxe4 Bxb3 $16)) 33... Qa6 {[%emt 0:00:00]} (33... Qxc5 $11 34. dxc5 axb3 35. axb3 Kf7) 34. Nc2 $14 {[%emt 0:00:00]} (34. Qxb4 Qe2 $11) 34... axb3 {[%emt 0:00:00]} 35. axb3 {[%emt 0:00:00]} Bb5 {[%emt 0:00:00]} (35... Bb7 $11 {remains equal.}) 36. Qxb4 {[%emt 0:00:00]} Bd3 {[%emt 0:00:00]} 37. Qb8+ {[%emt 0:06:24]} Kf7 {[%emt 0:00:00] [#]} (37... Kg7 $142) 38. Qc7+ {[%emt 0:00:06]} (38. h4 $142 $1) 38... Ke8 $16 {[%emt 0:00:00]} 39. Kg2 {[%emt 0:01:38]} (39. d5 $16 {White wants to mate with d6.} exd5 40. Qe5+ (40. Qxh7 Bxc2 41. Qg8+ Ke7 $15) 40... Kf7 41. Qxd5+ Ke7 42. Qc5+ Kd7 43. Qd4+ Qd6 44. Qa7+ Qc7 45. Qxc7+ Kxc7 46. Nd4) 39... g5 $2 {[%mdl 8192] [#]} (39... Qa2 $11) 40. Nb4 $2 {[%emt 0:00:18]} (40. d5 $1 $18 {[%cal Rd5d6] Hoping for d6.} exd5 41. Qe5+ (41. Qxh7 Bxc2 42. Qg8+ Kd7 $11) 41... Kf7 42. Nd4 (42. Qxd5+ Qe6 $18)) 40... Bf1+ $2 {[%emt 0:00:00][%mdl 8192] [#]} (40... Qa1 $11 {and Black is okay.} 41. Nxd3 (41. Qxh7 $2 Qf1+ 42. Kg3 Qg1+ 43. Kh3 Bf1#) 41... exd3) 41. Kg3 $1 $18 {[%emt 0:00:30] The board is on fire.} Qe2 {[%emt 0:00:00][%csl Ge4][%cal Re2f3]} 42. Qc6+ {[%emt 0:00:30]} Kf8 {[%emt 0:00:00][%csl Ge4][%cal Re2f3]} 43. Qxe4 {[%emt 0:00:30]} ({Inferior is} 43. Qd6+ Kf7 44. Qd7+ Kf6 45. Qd8+ Kf7 46. Qd7+ Kf6 47. Qd8+ Kf7 48. Qd7+ $11) 43... Qb5 {[%emt 0:00:00]} (43... h5 {keeps fighting.} 44. h4 Qe1 45. Qf3+ (45. hxg5 Qxb4 46. Qxe6 Qb7 $18) (45. Qxe6 gxh4+ 46. Kxh4 Qxb4 $16) 45... Kg8) 44. Nc6 {[%emt 0:00:30]} Bd3 {[%emt 0:00:00]} 45. Qxe6 {[%emt 0:00:30] Qf6+ would kill now.} h5 {[%emt 0:00:00]} 46. Qf6+ {[%emt 0:00:30]} Kg8 {[%emt 0:00:00]} 47. Ne7+ {[%emt 0:02:52] Weighted Error Value: White=0.24 (precise) /Black=0.71} 1-0

[Event "1st Henriquez Urena Memorial 2022"]
[Site "Santo Domingo"]
[Date "2022.09.21"]
[Round "7.7"]
[White "Orizondo, Hugo"]
[Black "Mesa Cruz, Juan Carlos"]
[Result "1/2-1/2"]
[ECO "E10"]
[WhiteElo "2034"]
[BlackElo "2119"]
[Annotator "TA"]
[PlyCount "118"]
[EventDate "2022.09.16"]
[EventType "swiss"]
[EventCountry "DOM"]
[SourceTitle "playchess.com"]
[Source "ChessBase"]
[SourceQuality "1"]
[TimeControl "5400+30"]

{[%evp 9,118,70,74,64,70,74,82,79,86,62,78,58,62,58,82,80,98,54,108,64,89,89,108,-29,-12,-121,79,70,218,0,32,0,0,-73,-68,-74,-58,-68,-46,-68,-54,-50,-58,-79,-10,-33,0,22,91,77,127,134,198,45,94,65,220,217,249,227,609,487,610,600,605,574,758,523,605,530,666,602,497,286,827,332,452,0,0,0,0,0,0,0,0,0,0,0,0,0,0,-6419,0,0,0,0,0,0,0,0,0,0,0,0,0,0,0,0,0,0,0]} 1. d4 {[%emt 0:00:11][%cal Bd2d4,Bd4d5][%mdl 32]} Nf6 {[%emt 0:00:08]} 2. c4 {[%emt 0:00:05]} e6 {[%emt 0:00:22]} 3. Nf3 {[%emt 0:00:05]} Be7 {[%emt 0:00:16]} 4. Nc3 {[%emt 0:03:14]} c5 {[%emt 0:12:29]} 5. d5 {[%emt 0:01:01]} d6 {[%emt 0:00:57]} 6. e4 {[%emt 0:00:51] E10: Blumenfeld Gambit.} O-O {[%emt 0:00:30]} 7. Be2 {[%emt 0:03:22]} e5 {[%emt 0:06:41]} 8. h3 {[%emt 0:07:52] White is better.} Ne8 {[%emt 0:01:30]} 9. g4 {[%emt 0:00:24]} Na6 {[%emt 0:13:59]} 10. Be3 {[%emt 0:05:35]} Bd7 {[%emt 0:02:02]} 11. Qd2 {[%emt 0:07:58] [#]} Nec7 $146 {[%emt 0:06:09]} ({Predecessor:} 11... Nac7 12. Bd3 Rb8 13. a4 a6 14. Qe2 g6 15. Bh6 Ng7 16. Rg1 Kh8 17. Rb1 Qe8 {1-0 (37) Meszaros,B (2203)-Pacal,M (2117) Subotica 2017}) 12. O-O {[%emt 0:15:12]} Qe8 {[%emt 0:09:34]} 13. a4 {[%emt 0:02:51]} Kh8 {[%emt 0:01:28]} ({Black should try} 13... Nb4 $14) 14. Rfd1 {[%emt 0:14:07]} Rd8 {[%emt 0:06:59]} 15. Nb5 {[%emt 0:02:46]} g6 {[%emt 0:01:08]} 16. Bd3 {[%emt 0:09:38] White has more active pieces.} (16. Qc3 $16) 16... f5 $1 $11 {[%emt 0:06:27]} 17. Bh6 {[%emt 0:03:41]} (17. exf5 $11 {remains equal.} gxf5 18. Bh6 (18. Nxa7 $2 fxg4 19. Nh2 gxh3 $19) 18... fxg4 19. Bxf8 Qxf8 20. Nh2 gxh3 21. Kh1) 17... Rg8 $2 {[%emt 0:08:34]} (17... fxg4 $17 18. Bxf8 Qxf8) 18. Ng5 $16 {[%emt 0:01:04] And now f4 would win.} (18. gxf5 $2 gxf5+ 19. Kh2 f4 20. Nxd6 Bxd6 $19) (18. Nxa7 fxg4 19. Ng5 Bf8 $17) (18. exf5 gxf5 19. Qe3 (19. Nxa7 $2 Qh5 $19) 19... Rg6 $15) 18... fxg4 {[%emt 0:03:19]} (18... f4 $14) 19. hxg4 $2 {[%emt 0:00:07]} ({Only move:} 19. f4 $1 $18) 19... Bxg4 $14 {[%emt 0:01:21]} 20. f3 {[%emt 0:00:10]} Bh5 {[%emt 0:01:19]} 21. Bf1 {[%emt 0:06:18]} (21. Rf1 $1 $11 Bf8 22. Bxf8 Rxf8 23. f4) 21... Bf8 $17 {[%emt 0:04:14]} 22. Bxf8 {[%emt 0:00:17]} Rxf8 {[%emt 0:00:28]} 23. Bg2 {[%emt 0:02:31]} Qe7 {[%emt 0:03:27]} 24. Ra3 {[%emt 0:03:17]} Rf6 {[%emt 0:04:32]} 25. Rb3 {[%emt 0:00:50]} Nxb5 {[%emt 0:01:27]} 26. axb5 {[%emt 0:00:30]} Nb4 {[%emt 0:01:48]} (26... Nc7 $17) 27. Ra1 {[%emt 0:01:03]} (27. Ne6 Rg8 $15) 27... b6 {[%emt 0:01:22]} ({Better is} 27... a6 $15) 28. Rba3 $11 {[%emt 0:01:41]} Rd7 {[%emt 0:00:19] [#]} (28... Ra8 $11) 29. Bh3 $1 $16 {[%emt 0:00:16]} Rc7 {[%emt 0:00:29]} ({Black should play} 29... Rb7) 30. Ne6 $36 {[%emt 0:01:17][%mdl 2048] White is on the roll.} Rb7 {[%emt 0:00:42] [#]} (30... a5 $16) 31. Bg4 $2 {[%emt 0:02:05]} (31. f4 $1 $18 {[%cal Rf4e5] Threatens to win with fxe5.} Rf7 32. fxe5 dxe5 33. Qg5 Qxg5+ 34. Nxg5) 31... Bxg4 {[%emt 0:01:19]} (31... Rf7 $1 $14 {might be stronger.}) 32. fxg4 {[%emt 0:00:02]} g5 $2 {[%emt 0:00:07]} (32... Kg8 $14) 33. Rh3 {[%emt 0:01:26]} ({And not} 33. Nxg5 Rg6 34. Nh3 Qh4 $17) 33... Rf4 {[%emt 0:00:14]} 34. Nxf4 {[%emt 0:03:13]} gxf4 {[%emt 0:00:01]} (34... exf4 35. Qc3+ Kg8) 35. Kg2 {[%emt 0:00:20]} Qg5 {[%emt 0:00:22] Hoping for ...f3+.} 36. Kf3 {[%emt 0:00:40]} Rg7 {[%emt 0:00:34]} 37. Rg1 {[%emt 0:00:27]} Qg6 {[%emt 0:00:11]} 38. Rh4 {[%emt 0:01:19]} Qf6 {[%emt 0:00:31]} 39. Rgh1 {[%emt 0:00:20]} Qf7 {[%emt 0:00:13]} 40. Rh6 {[%emt 0:00:41]} Qd7 {[%emt 0:00:05]} 41. R1h4 {[%emt 0:00:26]} (41. Rg1 $142) 41... a6 $2 {[%emt 0:00:01]} (41... Kg8 42. Qd1 Qe7) 42. bxa6 {[%emt 0:00:25]} (42. Qh2 $142) 42... Qa4 {[%emt 0:00:35]} 43. Rxd6 $2 {[%emt 0:00:49]} (43. Rh1 $18) 43... Qb3+ $11 {[%emt 0:00:07]} 44. Qc3 {[%emt 0:00:26]} Qd1+ {[%emt 0:00:24]} 45. Kg2 {[%emt 0:01:02] Threatening mate with Rd8+.} Qe2+ {[%emt 0:01:04]} (45... Nd3 $5 46. Rd8+ $8 (46. Rxb6 $2 f3+ 47. Kh3 Qh1+ 48. Kg3 Qg2#) 46... Rg8 47. Rxg8+ Kxg8 $11) 46. Kg1 {[%emt 0:00:26] Rd8+ would kill now.} Qd1+ {[%emt 0:01:00]} (46... Nd3 $5 47. Rd8+ $8 Rg8 48. Rxg8+ Kxg8 $11) 47. Kg2 $1 {[%emt 0:00:32]} Qe2+ {[%emt 0:00:17]} (47... Nd3 $5 48. Rd8+ $8 (48. Rxb6 $2 {leads to mate.} f3+ 49. Kh3 Qh1+ 50. Kg3 Qg2#) 48... Rg8 49. Rxg8+ Kxg8 $11) 48. Kg1 {[%emt 0:00:30] Intending Rd8+ and mate.} Nd3 {[%emt 0:02:18] ( -> ...Qf2+)} 49. Rd8+ {[%emt 0:00:32]} Rg8 {[%emt 0:00:01]} 50. Rxg8+ {[%emt 0:00:19]} Kxg8 {[%emt 0:00:01][%mdl 4096] Endgame KQR-KQN} 51. Rh2 {[%emt 0:01:08] The position is equal.} Qd1+ {[%emt 0:00:48]} 52. Kg2 {[%emt 0:00:04]} Qxg4+ {[%emt 0:00:16]} 53. Kf1 {[%emt 0:00:39]} Qd1+ {[%emt 0:00:36]} 54. Kg2 {[%emt 0:00:01]} Ne1+ {[%emt 0:01:23]} 55. Kf2 {[%emt 0:00:57]} Nd3+ {[%emt 0:00:22]} 56. Kg2 {[%emt 0:00:12]} Qe2+ {[%emt 0:01:03]} 57. Kg1 {[%emt 0:00:18]} Qd1+ {[%emt 0:00:33]} 58. Kg2 {[%emt 0:00:04]} Ne1+ {[%emt 0:00:30]} 59. Kf2 {[%emt 0:00:19]} Nd3+ {[%emt 0:00:08] Quite a comeback for White.  Weighted Error Value: White=0.64/Black=0.42} 1/2-1/2